[Event "Titled Tuesday Blitz August 1 Late 2023"]
[White "Stanisz, Patryk"]
[Black "Willy, Stephen"]
[WhiteFideId "1123106"]
[BlackFideId "30981468"]
[WhiteElo "2307"]
[BlackElo "2481"]
[Result "0-1"]
[Round "2"]
[TimeControl "180+1"]
[Date "2023.08.01"]
[WhiteClock "0:00:23"]
[BlackClock "0:00:45"]
[Board "144"]

1. d4 {[%clk 0:03:00]}  d5 {[%clk 0:02:58]} 2. c4 {[%clk 0:03:00]}  e6 {[%clk 0:02:55]} 3. Nc3 {[%clk 0:03:00]}  Be7 {[%clk 0:02:54]} 4. Nf3 {[%clk 0:03:00]}  Nf6 {[%clk 0:02:53]} 5. Bf4 {[%clk 0:03:00]}  O-O {[%clk 0:02:52]} 6. e3 {[%clk 0:03:00]}  b6 {[%clk 0:02:51]} 7. Rc1 {[%clk 0:02:57]}  Bb7 {[%clk 0:02:39]} 8. h3 {[%clk 0:02:57]}  c5 {[%clk 0:02:37]} 9. a3 {[%clk 0:02:56]}  Nbd7 {[%clk 0:02:33]} 10. Bd3 {[%clk 0:02:54]}  Rc8 {[%clk 0:02:21]} 11. cxd5 {[%clk 0:02:48]}  Nxd5 {[%clk 0:02:14]} 12. Nxd5 {[%clk 0:02:49]}  Bxd5 {[%clk 0:02:14]} 13. O-O {[%clk 0:02:49]}  cxd4 {[%clk 0:02:07]} 14. Rxc8 {[%clk 0:02:50]}  Qxc8 {[%clk 0:02:06]} 15. exd4 {[%clk 0:02:51]}  Nf6 {[%clk 0:02:02]} 16. Ne5 {[%clk 0:02:46]}  Rd8 {[%clk 0:02:01]} 17. Re1 {[%clk 0:02:29]}  Qa8 {[%clk 0:01:57]} 18. Bf1 {[%clk 0:02:17]}  Ne4 {[%clk 0:01:48]} 19. Qh5 {[%clk 0:02:13]}  Nd6 {[%clk 0:01:45]} 20. f3 {[%clk 0:02:01]}  Bf6 {[%clk 0:01:38]} 21. Bd3 {[%clk 0:01:45]}  g6 {[%clk 0:01:37]} 22. Qh6 {[%clk 0:01:38]}  Bg7 {[%clk 0:01:37]} 23. Qh4 {[%clk 0:01:39]}  Nf5 {[%clk 0:01:29]} 24. Bxf5 {[%clk 0:01:31]}  exf5 {[%clk 0:01:30]} 25. Qe7 {[%clk 0:01:28]}  Be6 {[%clk 0:01:24]} 26. Be3 {[%clk 0:00:51]}  Bf8 {[%clk 0:01:13]} 27. Qf6 {[%clk 0:00:46]}  Re8 {[%clk 0:01:09]} 28. Rc1 {[%clk 0:00:39]}  Be7 {[%clk 0:00:55]} 29. Bg5 {[%clk 0:00:32]}  Bxf6 {[%clk 0:00:53]} 30. Bxf6 {[%clk 0:00:33]}  Qd5 {[%clk 0:00:52]} 31. Nc6 {[%clk 0:00:31]}  h6 {[%clk 0:00:46]} 32. Rd1 {[%clk 0:00:23]}  Qxc6 {[%clk 0:00:45]} 0-1


[Site "https://www.chess.com"]

[Event "Titled Tuesday Blitz August 1 Late 2023"]
[White "Peycheva, Gergana"]
[Black "Crispin Ferreras, Darvi Abraham"]
[WhiteFideId "2916711"]
[BlackFideId "6402771"]
[WhiteElo "2478"]
[BlackElo "2303"]
[Result "1-0"]
[Round "2"]
[TimeControl "180+1"]
[Date "2023.08.01"]
[WhiteClock "0:00:48"]
[BlackClock "0:00:14"]
[Board "147"]

1. d4 {[%clk 0:03:00]}  Nf6 {[%clk 0:02:55]} 2. c4 {[%clk 0:03:00]}  e6 {[%clk 0:02:53]} 3. Nc3 {[%clk 0:03:00]}  Bb4 {[%clk 0:02:47]} 4. Qc2 {[%clk 0:02:59]}  O-O {[%clk 0:02:46]} 5. e4 {[%clk 0:02:58]}  d5 {[%clk 0:02:44]} 6. e5 {[%clk 0:02:57]}  Ne4 {[%clk 0:02:44]} 7. Bd3 {[%clk 0:02:56]}  c5 {[%clk 0:02:42]} 8. Nf3 {[%clk 0:02:53]}  Nc6 {[%clk 0:02:41]} 9. O-O {[%clk 0:02:36]}  cxd4 {[%clk 0:02:39]} 10. Nxe4 {[%clk 0:02:33]}  dxe4 {[%clk 0:02:39]} 11. Bxe4 {[%clk 0:02:33]}  g6 {[%clk 0:02:37]} 12. Rd1 {[%clk 0:02:19]}  Bc5 {[%clk 0:02:35]} 13. a3 {[%clk 0:02:13]}  a5 {[%clk 0:02:35]} 14. Bg5 {[%clk 0:02:02]}  Qc7 {[%clk 0:02:32]} 15. Bf6 {[%clk 0:01:59]}  Be7 {[%clk 0:02:04]} 16. Bxc6 {[%clk 0:01:58]}  bxc6 {[%clk 0:02:02]} 17. Qe4 {[%clk 0:01:52]}  Bb7 {[%clk 0:01:56]} 18. Qh4 {[%clk 0:01:50]}  Bxf6 {[%clk 0:01:49]} 19. exf6 {[%clk 0:01:50]}  h5 {[%clk 0:01:42]} 20. Qg5 {[%clk 0:01:36]}  Kh7 {[%clk 0:01:38]} 21. Rxd4 {[%clk 0:01:33]}  c5 {[%clk 0:01:37]} 22. Rh4 {[%clk 0:01:33]}  Bxf3 {[%clk 0:01:04]} 23. gxf3 {[%clk 0:01:30]}  Rg8 {[%clk 0:00:14]} 24. Kh1 {[%clk 0:00:48]} 1-0


[Site "https://www.chess.com"]

[Event "Titled Tuesday Blitz August 1 Late 2023"]
[White "Ocido, Michael"]
[Black "Cupid, Kevin"]
[WhiteFideId "115201920"]
[BlackFideId "7700512"]
[WhiteElo "2473"]
[BlackElo "2301"]
[Result "1-0"]
[Round "2"]
[TimeControl "180+1"]
[Date "2023.08.01"]
[WhiteClock "0:00:27"]
[BlackClock "0:00:17"]
[Board "150"]

1. d4 {[%clk 0:03:00]}  Nf6 {[%clk 0:02:57]} 2. c4 {[%clk 0:03:00]}  e6 {[%clk 0:02:57]} 3. Nf3 {[%clk 0:02:59]}  Bb4+ {[%clk 0:02:57]} 4. Bd2 {[%clk 0:02:59]}  Be7 {[%clk 0:02:57]} 5. Nc3 {[%clk 0:02:55]}  c5 {[%clk 0:02:56]} 6. d5 {[%clk 0:02:54]}  O-O {[%clk 0:02:54]} 7. e4 {[%clk 0:02:44]}  d6 {[%clk 0:02:55]} 8. Bd3 {[%clk 0:02:41]}  Na6 {[%clk 0:02:54]} 9. O-O {[%clk 0:02:40]}  e5 {[%clk 0:02:44]} 10. a3 {[%clk 0:02:36]}  Nc7 {[%clk 0:02:43]} 11. b4 {[%clk 0:02:34]}  b6 {[%clk 0:02:43]} 12. Ne1 {[%clk 0:02:30]}  Nce8 {[%clk 0:02:41]} 13. Be2 {[%clk 0:02:28]}  g6 {[%clk 0:02:33]} 14. Nd3 {[%clk 0:02:28]}  Ng7 {[%clk 0:02:33]} 15. f4 {[%clk 0:02:18]}  exf4 {[%clk 0:02:29]} 16. Bxf4 {[%clk 0:02:15]}  Re8 {[%clk 0:02:25]} 17. e5 {[%clk 0:02:01]}  Nfh5 {[%clk 0:02:17]} 18. Bh6 {[%clk 0:01:46]}  dxe5 {[%clk 0:02:11]} 19. Nxe5 {[%clk 0:01:42]}  Bf6 {[%clk 0:02:10]} 20. Nc6 {[%clk 0:01:35]}  Qd6 {[%clk 0:01:58]} 21. Bxg7 {[%clk 0:01:22]}  Kxg7 {[%clk 0:01:38]} 22. Nb5 {[%clk 0:01:13]}  Qd7 {[%clk 0:01:27]} 23. Bxh5 {[%clk 0:01:12]}  a6 {[%clk 0:01:07]} 24. Ra2 {[%clk 0:00:41]}  axb5 {[%clk 0:00:32]} 25. Raf2 {[%clk 0:00:40]}  gxh5 {[%clk 0:00:23]} 26. Rxf6 {[%clk 0:00:39]}  Qg4 {[%clk 0:00:19]} 27. Rxf7+ {[%clk 0:00:32]}  Kh8 {[%clk 0:00:18]} 28. Qa1+ {[%clk 0:00:27]}  Kg8 {[%clk 0:00:18]} 29. Ne7+ {[%clk 0:00:27]}  Rxe7 {[%clk 0:00:17]} 30. Rf8# {[%clk 0:00:27]} 1-0


[Site "https://www.chess.com"]

[Event "Titled Tuesday Blitz August 1 Late 2023"]
[White "Akhayan, Ruben"]
[Black "Tifferet, Shaked"]
[WhiteFideId "204439"]
[BlackFideId "2811529"]
[WhiteElo "2298"]
[BlackElo "2473"]
[Result "0-1"]
[Round "2"]
[TimeControl "180+1"]
[Date "2023.08.01"]
[WhiteClock "0:00:30"]
[BlackClock "0:00:36"]
[Board "151"]

1. e4 {[%clk 0:03:00]}  c5 {[%clk 0:02:59]} 2. Nf3 {[%clk 0:02:59]}  e6 {[%clk 0:02:58]} 3. d4 {[%clk 0:02:59]}  cxd4 {[%clk 0:02:58]} 4. Nxd4 {[%clk 0:02:59]}  Nc6 {[%clk 0:02:59]} 5. g3 {[%clk 0:02:56]}  a6 {[%clk 0:02:57]} 6. Bg2 {[%clk 0:02:56]}  Nxd4 {[%clk 0:02:49]} 7. Qxd4 {[%clk 0:02:56]}  Ne7 {[%clk 0:02:50]} 8. O-O {[%clk 0:02:55]}  Nc6 {[%clk 0:02:50]} 9. Qd1 {[%clk 0:02:55]}  b5 {[%clk 0:02:50]} 10. Nc3 {[%clk 0:02:55]}  Bb7 {[%clk 0:02:51]} 11. Re1 {[%clk 0:02:50]}  Be7 {[%clk 0:02:50]} 12. a4 {[%clk 0:02:49]}  b4 {[%clk 0:02:47]} 13. Nd5 {[%clk 0:02:50]}  O-O {[%clk 0:02:43]} 14. Nxe7+ {[%clk 0:02:49]}  Nxe7 {[%clk 0:02:43]} 15. Bf4 {[%clk 0:02:49]}  d5 {[%clk 0:02:39]} 16. Qd2 {[%clk 0:02:32]}  a5 {[%clk 0:02:38]} 17. Rad1 {[%clk 0:02:31]}  dxe4 {[%clk 0:02:36]} 18. Bxe4 {[%clk 0:02:28]}  Bxe4 {[%clk 0:02:33]} 19. Rxe4 {[%clk 0:02:28]}  Qxd2 {[%clk 0:02:20]} 20. Rxd2 {[%clk 0:02:28]}  Nd5 {[%clk 0:02:18]} 21. Kg2 {[%clk 0:02:19]}  Rac8 {[%clk 0:02:17]} 22. Be5 {[%clk 0:02:15]}  Rc6 {[%clk 0:01:49]} 23. Ree2 {[%clk 0:02:06]}  Rfc8 {[%clk 0:01:48]} 24. Bd4 {[%clk 0:02:01]}  f6 {[%clk 0:01:36]} 25. f4 {[%clk 0:01:58]}  Kf7 {[%clk 0:01:36]} 26. Kf3 {[%clk 0:01:57]}  h6 {[%clk 0:01:35]} 27. h4 {[%clk 0:01:57]}  h5 {[%clk 0:01:35]} 28. Rg2 {[%clk 0:01:46]}  Rd8 {[%clk 0:01:31]} 29. Bg1 {[%clk 0:01:38]}  Rdc8 {[%clk 0:01:30]} 30. Bd4 {[%clk 0:01:36]}  Ne7 {[%clk 0:01:27]} 31. g4 {[%clk 0:01:25]}  hxg4+ {[%clk 0:01:26]} 32. Kxg4 {[%clk 0:01:25]}  Nf5 {[%clk 0:01:25]} 33. Bg1 {[%clk 0:01:23]}  Rd6 {[%clk 0:01:12]} 34. Rxd6 {[%clk 0:01:21]}  Nxd6 {[%clk 0:01:13]} 35. Rd2 {[%clk 0:01:17]}  Rc6 {[%clk 0:01:13]} 36. h5 {[%clk 0:01:12]}  Ne4 {[%clk 0:01:07]} 37. Re2 {[%clk 0:00:57]}  f5+ {[%clk 0:01:06]} 38. Kf3 {[%clk 0:00:56]}  Rd6 {[%clk 0:01:05]} 39. Be3 {[%clk 0:00:52]}  Kg8 {[%clk 0:00:59]} 40. Rg2 {[%clk 0:00:49]}  Kh7 {[%clk 0:00:59]} 41. b3 {[%clk 0:00:43]}  Nf6 {[%clk 0:00:56]} 42. Rh2 {[%clk 0:00:40]}  Ng4 {[%clk 0:00:54]} 43. Rg2 {[%clk 0:00:40]}  Kh6 {[%clk 0:00:50]} 44. Bc1 {[%clk 0:00:40]}  Kxh5 {[%clk 0:00:49]} 45. Bb2 {[%clk 0:00:41]}  g5 {[%clk 0:00:48]} 46. fxg5 {[%clk 0:00:39]}  Kxg5 {[%clk 0:00:48]} 47. Re2 {[%clk 0:00:36]}  Rc6 {[%clk 0:00:39]} 48. Bc1+ {[%clk 0:00:36]}  Kf6 {[%clk 0:00:38]} 49. Bf4 {[%clk 0:00:36]}  e5 {[%clk 0:00:38]} 50. Bg3 {[%clk 0:00:36]}  Rc3+ {[%clk 0:00:37]} 51. Kg2 {[%clk 0:00:36]}  f4 {[%clk 0:00:36]} 52. Be1 {[%clk 0:00:30]}  f3+ {[%clk 0:00:36]} 0-1


[Site "https://www.chess.com"]

[Event "Titled Tuesday Blitz August 1 Late 2023"]
[White "Fernandez Siles, Luis"]
[Black "Bazilius, Augustinas"]
[WhiteFideId "2209420"]
[BlackFideId "12832251"]
[WhiteElo "2288"]
[BlackElo "2471"]
[Result "1-0"]
[Round "2"]
[TimeControl "180+1"]
[Date "2023.08.01"]
[WhiteClock "0:00:57"]
[BlackClock "0:01:17"]
[Board "154"]

1. e4 {[%clk 0:03:00]}  c5 {[%clk 0:02:58]} 2. Nf3 {[%clk 0:03:00]}  d6 {[%clk 0:02:59]} 3. Bb5+ {[%clk 0:03:00]}  Bd7 {[%clk 0:02:57]} 4. Bxd7+ {[%clk 0:03:00]}  Qxd7 {[%clk 0:02:57]} 5. O-O {[%clk 0:02:59]}  Nc6 {[%clk 0:02:55]} 6. c3 {[%clk 0:02:59]}  Nf6 {[%clk 0:02:54]} 7. Re1 {[%clk 0:02:59]}  e5 {[%clk 0:02:54]} 8. d3 {[%clk 0:02:48]}  Be7 {[%clk 0:02:53]} 9. Nbd2 {[%clk 0:02:47]}  O-O {[%clk 0:02:53]} 10. Nf1 {[%clk 0:02:46]}  Rfe8 {[%clk 0:02:51]} 11. Bg5 {[%clk 0:02:46]}  h6 {[%clk 0:02:48]} 12. Bxf6 {[%clk 0:02:46]}  Bxf6 {[%clk 0:02:47]} 13. Ne3 {[%clk 0:02:47]}  g6 {[%clk 0:02:45]} 14. Nd5 {[%clk 0:02:43]}  Bg7 {[%clk 0:02:46]} 15. Nd2 {[%clk 0:02:41]}  Ne7 {[%clk 0:02:41]} 16. Nxe7+ {[%clk 0:02:40]}  Qxe7 {[%clk 0:02:37]} 17. Nc4 {[%clk 0:02:35]}  b5 {[%clk 0:02:35]} 18. Ne3 {[%clk 0:02:35]}  a5 {[%clk 0:02:15]} 19. Nd5 {[%clk 0:02:31]}  Qb7 {[%clk 0:02:15]} 20. a4 {[%clk 0:02:19]}  b4 {[%clk 0:02:15]} 21. cxb4 {[%clk 0:02:14]}  axb4 {[%clk 0:02:13]} 22. b3 {[%clk 0:02:13]}  f5 {[%clk 0:02:08]} 23. Qf3 {[%clk 0:01:45]}  Rf8 {[%clk 0:02:05]} 24. exf5 {[%clk 0:01:41]}  e4 {[%clk 0:01:46]} 25. Qxe4 {[%clk 0:01:31]}  Qf7 {[%clk 0:01:40]} 26. Ne7+ {[%clk 0:01:15]}  Kh8 {[%clk 0:01:33]} 27. Nxg6+ {[%clk 0:01:15]}  Kg8 {[%clk 0:01:33]} 28. Nxf8 {[%clk 0:01:12]}  Bxa1 {[%clk 0:01:17]} 29. Qxa8 {[%clk 0:00:57]} 1-0


[Site "https://www.chess.com"]

[Event "Titled Tuesday Blitz August 1 Late 2023"]
[White "ExchangeAB"]
[Black "Vaglio Munoz, Jaime"]
[BlackFideId "6500145"]
[WhiteElo "2467"]
[BlackElo "2270"]
[Result "1/2-1/2"]
[Round "2"]
[TimeControl "180+1"]
[Date "2023.08.01"]
[WhiteClock "0:00:41"]
[BlackClock "0:00:48"]
[Board "158"]

1. d4 {[%clk 0:03:00]}  c6 {[%clk 0:02:59]} 2. e4 {[%clk 0:02:59]}  b5 {[%clk 0:02:57]} 3. c4 {[%clk 0:02:56]}  bxc4 {[%clk 0:02:57]} 4. Bxc4 {[%clk 0:02:56]}  d5 {[%clk 0:02:58]} 5. exd5 {[%clk 0:02:55]}  cxd5 {[%clk 0:02:58]} 6. Bb5+ {[%clk 0:02:55]}  Bd7 {[%clk 0:02:59]} 7. Bxd7+ {[%clk 0:02:54]}  Nxd7 {[%clk 0:02:59]} 8. Nc3 {[%clk 0:02:54]}  Ngf6 {[%clk 0:02:59]} 9. Nf3 {[%clk 0:02:55]}  e6 {[%clk 0:02:59]} 10. O-O {[%clk 0:02:55]}  Be7 {[%clk 0:02:58]} 11. Bf4 {[%clk 0:02:54]}  O-O {[%clk 0:02:58]} 12. Rc1 {[%clk 0:02:54]}  Qb6 {[%clk 0:02:58]} 13. Na4 {[%clk 0:02:52]}  Qa6 {[%clk 0:02:57]} 14. b3 {[%clk 0:02:52]}  Rfc8 {[%clk 0:02:56]} 15. Qd2 {[%clk 0:02:51]}  h6 {[%clk 0:02:56]} 16. Ne5 {[%clk 0:02:45]}  Nxe5 {[%clk 0:02:52]} 17. Bxe5 {[%clk 0:02:46]}  Ne4 {[%clk 0:02:52]} 18. Qe3 {[%clk 0:02:46]}  Ba3 {[%clk 0:02:50]} 19. Rxc8+ {[%clk 0:02:39]}  Rxc8 {[%clk 0:02:51]} 20. f3 {[%clk 0:02:30]}  Nd6 {[%clk 0:02:50]} 21. Bxd6 {[%clk 0:02:28]}  Bxd6 {[%clk 0:02:49]} 22. Rc1 {[%clk 0:02:27]}  g5 {[%clk 0:02:43]} 23. Rxc8+ {[%clk 0:02:22]}  Qxc8 {[%clk 0:02:44]} 24. Qc3 {[%clk 0:02:22]}  Qxc3 {[%clk 0:02:40]} 25. Nxc3 {[%clk 0:02:23]}  a6 {[%clk 0:02:39]} 26. Na4 {[%clk 0:02:17]}  Kf8 {[%clk 0:02:38]} 27. Nc5 {[%clk 0:02:16]}  a5 {[%clk 0:02:36]} 28. Kf2 {[%clk 0:02:05]}  Ke7 {[%clk 0:02:34]} 29. Ke3 {[%clk 0:02:04]}  Bxh2 {[%clk 0:02:32]} 30. g4 {[%clk 0:01:57]}  Bg3 {[%clk 0:02:28]} 31. Nb7 {[%clk 0:01:54]}  Bc7 {[%clk 0:02:25]} 32. a3 {[%clk 0:01:49]}  f5 {[%clk 0:02:23]} 33. b4 {[%clk 0:01:48]}  axb4 {[%clk 0:02:22]} 34. axb4 {[%clk 0:01:49]}  Bb6 {[%clk 0:01:57]} 35. Nc5 {[%clk 0:01:49]}  f4+ {[%clk 0:01:51]} 36. Ke2 {[%clk 0:01:45]}  Kd6 {[%clk 0:01:51]} 37. Kd3 {[%clk 0:01:44]}  Bc7 {[%clk 0:01:18]} 38. Nb7+ {[%clk 0:01:38]}  Kc6 {[%clk 0:01:17]} 39. Nc5 {[%clk 0:01:39]}  e5 {[%clk 0:01:16]} 40. dxe5 {[%clk 0:01:39]}  Bxe5 {[%clk 0:01:16]} 41. Kc2 {[%clk 0:01:26]}  Kb5 {[%clk 0:01:16]} 42. Kb3 {[%clk 0:01:21]}  Bd6 {[%clk 0:01:09]} 43. Nd3 {[%clk 0:01:04]}  d4 {[%clk 0:01:08]} 44. Kc2 {[%clk 0:00:48]}  Kc4 {[%clk 0:01:07]} 45. Kd2 {[%clk 0:00:44]}  Bxb4+ {[%clk 0:01:06]} 46. Ke2 {[%clk 0:00:45]}  Bd6 {[%clk 0:01:06]} 47. Nf2 {[%clk 0:00:44]}  Be7 {[%clk 0:01:00]} 48. Nd3 {[%clk 0:00:44]}  Bf6 {[%clk 0:00:54]} 49. Nf2 {[%clk 0:00:43]}  Kc3 {[%clk 0:00:53]} 50. Ne4+ {[%clk 0:00:43]}  Kc2 {[%clk 0:00:53]} 51. Nc5 {[%clk 0:00:41]}  Be7 {[%clk 0:00:51]} 52. Nd3 {[%clk 0:00:41]}  Bd6 {[%clk 0:00:51]} 53. Ne1+ {[%clk 0:00:40]}  Kc3 {[%clk 0:00:51]} 54. Nd3 {[%clk 0:00:40]}  Kc2 {[%clk 0:00:51]} 55. Ne1+ {[%clk 0:00:40]}  Kc3 {[%clk 0:00:48]} 56. Nd3 {[%clk 0:00:41]}  Kc2 {[%clk 0:00:48]} 1/2-1/2


[Site "https://www.chess.com"]

[Event "Titled Tuesday Blitz August 1 Late 2023"]
[White "Sala, Giulia"]
[Black "Hamley, Ryan"]
[WhiteFideId "2840451"]
[BlackFideId "30959497"]
[WhiteElo "2269"]
[BlackElo "2466"]
[Result "0-1"]
[Round "2"]
[TimeControl "180+1"]
[Date "2023.08.01"]
[WhiteClock "0:00:42"]
[BlackClock "0:01:29"]
[Board "159"]

1. e4 {[%clk 0:03:00]}  c5 {[%clk 0:02:56]} 2. Nf3 {[%clk 0:03:00]}  d6 {[%clk 0:02:57]} 3. d4 {[%clk 0:02:59]}  cxd4 {[%clk 0:02:57]} 4. Nxd4 {[%clk 0:02:59]}  Nf6 {[%clk 0:02:58]} 5. Nc3 {[%clk 0:02:59]}  g6 {[%clk 0:02:59]} 6. Be3 {[%clk 0:02:59]}  Bg7 {[%clk 0:03:00]} 7. f3 {[%clk 0:02:57]}  O-O {[%clk 0:03:00]} 8. Qd2 {[%clk 0:02:58]}  Nc6 {[%clk 0:03:01]} 9. Bc4 {[%clk 0:02:58]}  Bd7 {[%clk 0:02:54]} 10. O-O-O {[%clk 0:02:56]}  Rc8 {[%clk 0:02:54]} 11. Bb3 {[%clk 0:02:56]}  Na5 {[%clk 0:02:54]} 12. h4 {[%clk 0:02:50]}  h5 {[%clk 0:02:49]} 13. Kb1 {[%clk 0:02:49]}  Nc4 {[%clk 0:02:49]} 14. Bxc4 {[%clk 0:02:49]}  Rxc4 {[%clk 0:02:50]} 15. g4 {[%clk 0:02:49]}  b5 {[%clk 0:02:48]} 16. gxh5 {[%clk 0:02:48]}  Nxh5 {[%clk 0:02:48]} 17. Nd5 {[%clk 0:02:44]}  e6 {[%clk 0:02:41]} 18. Nc3 {[%clk 0:02:06]}  b4 {[%clk 0:02:29]} 19. Nce2 {[%clk 0:02:05]}  d5 {[%clk 0:02:16]} 20. exd5 {[%clk 0:01:57]}  exd5 {[%clk 0:02:17]} 21. Rdg1 {[%clk 0:01:56]}  Re8 {[%clk 0:02:12]} 22. Bh6 {[%clk 0:01:44]}  Qf6 {[%clk 0:02:02]} 23. Bxg7 {[%clk 0:01:42]}  Kxg7 {[%clk 0:02:03]} 24. b3 {[%clk 0:01:38]}  Rcc8 {[%clk 0:01:53]} 25. Qxb4 {[%clk 0:01:37]}  Bf5 {[%clk 0:01:52]} 26. Nxf5+ {[%clk 0:01:36]}  Qxf5 {[%clk 0:01:53]} 27. Qd2 {[%clk 0:01:33]}  Qxf3 {[%clk 0:01:42]} 28. Nd4 {[%clk 0:01:32]}  Qe4 {[%clk 0:01:35]} 29. Re1 {[%clk 0:01:32]}  Qg4 {[%clk 0:01:35]} 30. Rxe8 {[%clk 0:01:26]}  Rxe8 {[%clk 0:01:36]} 31. Rg1 {[%clk 0:01:27]}  Qxg1+ {[%clk 0:01:34]} 32. Kb2 {[%clk 0:00:59]}  Qe3 {[%clk 0:01:32]} 33. Qd1 {[%clk 0:00:56]}  Re4 {[%clk 0:01:28]} 34. Nb5 {[%clk 0:00:49]}  d4 {[%clk 0:01:28]} 35. a4 {[%clk 0:00:47]}  a6 {[%clk 0:01:28]} 36. Na3 {[%clk 0:00:46]}  Qc3+ {[%clk 0:01:28]} 37. Ka2 {[%clk 0:00:42]}  Re1 {[%clk 0:01:29]} 0-1


[Site "https://www.chess.com"]

[Event "Titled Tuesday Blitz August 1 Late 2023"]
[White "Ruge, Edison"]
[Black "Miszler, Levente"]
[WhiteFideId "4401000"]
[BlackFideId "763276"]
[WhiteElo "2251"]
[BlackElo "2454"]
[Result "0-1"]
[Round "2"]
[TimeControl "180+1"]
[Date "2023.08.01"]
[WhiteClock "0:00:04"]
[BlackClock "0:01:11"]
[Board "166"]

1. e4 {[%clk 0:03:00]}  c5 {[%clk 0:02:53]} 2. Nf3 {[%clk 0:03:00]}  d6 {[%clk 0:02:52]} 3. d3 {[%clk 0:02:59]}  g6 {[%clk 0:02:51]} 4. Nbd2 {[%clk 0:03:00]}  Bg7 {[%clk 0:02:51]} 5. g3 {[%clk 0:03:01]}  Nc6 {[%clk 0:02:49]} 6. Bg2 {[%clk 0:03:02]}  e6 {[%clk 0:02:48]} 7. h4 {[%clk 0:03:02]}  Nge7 {[%clk 0:02:48]} 8. h5 {[%clk 0:03:02]}  Qc7 {[%clk 0:02:36]} 9. h6 {[%clk 0:03:01]}  Bf6 {[%clk 0:02:35]} 10. O-O {[%clk 0:02:58]}  O-O {[%clk 0:02:35]} 11. c3 {[%clk 0:02:56]}  b5 {[%clk 0:02:33]} 12. Nh2 {[%clk 0:02:57]}  Rb8 {[%clk 0:02:28]} 13. Ng4 {[%clk 0:02:53]}  Bh8 {[%clk 0:02:28]} 14. f4 {[%clk 0:02:53]}  f5 {[%clk 0:02:25]} 15. Ne3 {[%clk 0:02:51]}  b4 {[%clk 0:02:21]} 16. c4 {[%clk 0:02:51]}  Nd4 {[%clk 0:02:21]} 17. Nf3 {[%clk 0:02:44]}  Bb7 {[%clk 0:02:20]} 18. Ng5 {[%clk 0:02:36]}  Qd7 {[%clk 0:02:04]} 19. Rb1 {[%clk 0:02:36]}  Bf6 {[%clk 0:01:48]} 20. b3 {[%clk 0:02:31]}  Bxg5 {[%clk 0:01:48]} 21. fxg5 {[%clk 0:02:31]}  e5 {[%clk 0:01:48]} 22. Nd5 {[%clk 0:02:22]}  Nxd5 {[%clk 0:01:45]} 23. cxd5 {[%clk 0:02:22]}  fxe4 {[%clk 0:01:42]} 24. dxe4 {[%clk 0:02:18]}  Rxf1+ {[%clk 0:01:39]} 25. Qxf1 {[%clk 0:02:03]}  Rf8 {[%clk 0:01:36]} 26. Qd1 {[%clk 0:02:03]}  Ba6 {[%clk 0:01:36]} 27. Be3 {[%clk 0:01:58]}  Be2 {[%clk 0:01:35]} 28. Qd2 {[%clk 0:01:45]}  Qg4 {[%clk 0:01:35]} 29. Bxd4 {[%clk 0:01:44]}  exd4 {[%clk 0:01:36]} 30. Re1 {[%clk 0:01:33]}  Bf3 {[%clk 0:01:35]} 31. Qf2 {[%clk 0:00:55]}  Bxg2 {[%clk 0:01:28]} 32. Qxg2 {[%clk 0:00:51]}  Rf3 {[%clk 0:01:28]} 33. Kh2 {[%clk 0:00:43]}  d3 {[%clk 0:01:23]} 34. e5 {[%clk 0:00:42]}  d2 {[%clk 0:01:18]} 35. Rd1 {[%clk 0:00:37]}  Rxg3 {[%clk 0:01:11]} 36. Qxg3 {[%clk 0:00:36]}  Qxd1 {[%clk 0:01:11]} 37. Qh3 {[%clk 0:00:09]}  Qe2+ {[%clk 0:01:09]} 38. Kg3 {[%clk 0:00:08]}  Qe3+ {[%clk 0:01:09]} 39. Kg2 {[%clk 0:00:08]}  Qxh3+ {[%clk 0:01:10]} 40. Kxh3 {[%clk 0:00:04]}  d1=Q {[%clk 0:01:11]} 0-1


[Site "https://www.chess.com"]

[Event "Titled Tuesday Blitz August 1 Late 2023"]
[White "Papp, Petra"]
[Black "BrandonJiang123456"]
[WhiteFideId "739049"]
[WhiteElo "2454"]
[BlackElo "2246"]
[Result "0-1"]
[Round "2"]
[TimeControl "180+1"]
[Date "2023.08.01"]
[WhiteClock "0:00:00"]
[BlackClock "0:00:08"]
[Board "167"]

1. e4 {[%clk 0:03:00]}  c5 {[%clk 0:02:57]} 2. Nf3 {[%clk 0:03:00]}  Nc6 {[%clk 0:02:57]} 3. d4 {[%clk 0:02:52]}  cxd4 {[%clk 0:02:56]} 4. Nxd4 {[%clk 0:02:53]}  Nf6 {[%clk 0:02:57]} 5. Nc3 {[%clk 0:02:52]}  d6 {[%clk 0:02:55]} 6. Nd5 {[%clk 0:02:49]}  e6 {[%clk 0:02:49]} 7. Nxf6+ {[%clk 0:02:49]}  Qxf6 {[%clk 0:02:49]} 8. Be3 {[%clk 0:02:44]}  Bd7 {[%clk 0:02:49]} 9. Qd2 {[%clk 0:02:43]}  Be7 {[%clk 0:02:49]} 10. O-O-O {[%clk 0:02:43]}  O-O {[%clk 0:02:46]} 11. Nb5 {[%clk 0:02:35]}  Rfd8 {[%clk 0:02:24]} 12. h4 {[%clk 0:02:33]}  h6 {[%clk 0:02:12]} 13. g4 {[%clk 0:02:32]}  Ne5 {[%clk 0:02:03]} 14. g5 {[%clk 0:02:27]}  hxg5 {[%clk 0:02:03]} 15. hxg5 {[%clk 0:02:27]}  Qg6 {[%clk 0:02:04]} 16. f4 {[%clk 0:02:07]}  Qxe4 {[%clk 0:01:28]} 17. Qh2 {[%clk 0:02:04]}  Qxe3+ {[%clk 0:01:21]} 18. Kb1 {[%clk 0:02:04]}  f5 {[%clk 0:01:15]} 19. gxf6 {[%clk 0:01:53]}  Bxf6 {[%clk 0:00:43]} 20. Nxd6 {[%clk 0:01:48]}  Kf8 {[%clk 0:00:36]} 21. fxe5 {[%clk 0:00:43]}  Qxe5 {[%clk 0:00:27]} 22. Nc4 {[%clk 0:00:09]}  Qxh2 {[%clk 0:00:20]} 23. Rxh2 {[%clk 0:00:09]}  Ke7 {[%clk 0:00:19]} 24. Rhd2 {[%clk 0:00:06]}  Bc6 {[%clk 0:00:18]} 25. Nd6 {[%clk 0:00:06]}  Be5 {[%clk 0:00:17]} 26. Nc4 {[%clk 0:00:06]}  Rxd2 {[%clk 0:00:16]} 27. Rxd2 {[%clk 0:00:06]}  Rf8 {[%clk 0:00:15]} 28. Bd3 {[%clk 0:00:05]}  Bc7 {[%clk 0:00:15]} 29. a3 {[%clk 0:00:05]}  g5 {[%clk 0:00:11]} 30. Re2 {[%clk 0:00:05]}  g4 {[%clk 0:00:11]} 31. Ne3 {[%clk 0:00:04]}  g3 {[%clk 0:00:11]} 32. Nf5+ {[%clk 0:00:03]}  Kd7 {[%clk 0:00:11]} 33. Nd4 {[%clk 0:00:03]}  g2 {[%clk 0:00:09]} 34. Re1 {[%clk 0:00:03]}  Rg8 {[%clk 0:00:09]} 35. Nxc6 {[%clk 0:00:02]}  g1=Q {[%clk 0:00:07]} 36. Nb8+ {[%clk 0:00:01]}  Bxb8 {[%clk 0:00:07]} 37. Rxg1 {[%clk 0:00:00]}  Rxg1+ {[%clk 0:00:08]} 0-1


[Site "https://www.chess.com"]